bitfinex-derivatives/quotes_BTCF0:USTF0_20240814
["timestamp","ask_amount","ask_price","bid_price","bid_amount"]
[1723676674554,0.00825442,58994.0,58993.0,0.35831358]
[1723676674752,0.00025442,58994.0,58993.0,0.35731358]
[1723676674953,0.00825442,58994.0,58993.0,0.35731358]
[1723676675152,0.00825442,58994.0,58993.0,0.35831358]
[1723676675453,0.00825442,58994.0,58993.0,0.290941]
[1723676675643,0.00825442,58994.0,58993.0,0.35831358]
[1723676676047,0.00825442,58994.0,58993.0,0.71911358]
[1723676676243,0.00825442,58994.0,58993.0,0.651741]
[1723676677451,0.00825442,58994.0,58993.0,0.66155865]
[1723676679256,0.00825442,58994.0,58993.0,0.72881996]
[1723676680360,0.09825442,58994.0,58993.0,0.66155865]
[1723676680557,0.09825442,58994.0,58993.0,0.51155865]
[1723676682455,0.09825442,58994.0,58993.0,0.66155865]
[1723676683348,0.09825442,58994.0,58993.0,0.74629965]
[1723676683553,0.09825442,58994.0,58993.0,1.25481965]
[1723676689961,0.09825442,58994.0,58993.0,1.32208096]
[1723676691756,0.09825442,58994.0,58993.0,1.80669202]
[1723676691958,0.3216,59007.0,58993.0,1.80669202]
[1723676691959,0.3216,59007.0,59006.0,0.084722]
[1723676692153,0.9126,59010.0,59009.0,0.084718]
[1723676692154,0.91500001,59010.0,59009.0,0.084718]
[1723676692457,1.0726,59010.0,59009.0,0.084718]
[1723676692664,0.16,59010.0,59009.0,0.234718]
[1723676694767,0.16,59010.0,59009.0,0.235718]
[1723676694965,0.16,59010.0,59009.0,0.236718]
[1723676697265,0.16,59010.0,59009.0,0.682236]
[1723676697463,0.16,59010.0,59009.0,1.590636]
[1723676697767,0.16,59010.0,59009.0,1.6577549]
[1723676698472,0.16,59010.0,59009.0,1.25776875]
[1723676698766,0.16,59010.0,59009.0,1.190636]
[1723676699267,0.16,59010.0,59009.0,1.275354]
[1723676699463,0.16,59010.0,59009.0,1.34248675]
[1723676700167,0.16,59010.0,59009.0,1.34148675]
[1723676700370,0.16,59010.0,59009.0,1.275354]
[1723676701664,0.16,59010.0,59009.0,0.766954]
[1723676702066,0.16,59010.0,59009.0,0.597518]
[1723676703066,1.2735,59010.0,59009.0,0.002]
[1723676703369,1.2735,59010.0,59004.0,0.08454921]
[1723676703370,0.084723,59005.0,59004.0,0.0002542]
[1723676703559,0.084723,59005.0,58986.0,0.10124165]
[1723676703560,0.7259,59005.0,58995.0,0.05047114]
[1723676703759,0.05069328,58996.0,58990.0,0.05047114]
[1723676703956,0.17,58996.0,58995.0,0.084738]
[1723676704170,0.17,58996.0,58995.0,0.13520914]
[1723676704466,0.17,58996.0,58995.0,0.13522982]
[1723676704968,0.254736,58996.0,58995.0,0.05049053]
[1723676705161,0.084739,58994.0,58993.0,0.05049053]
[1723676705360,0.084739,58994.0,58992.0,0.05049053]
[1723676705361,0.084741,58993.0,58992.0,0.05049053]
[1723676705660,0.164741,58993.0,58992.0,0.05049053]
[1723676705867,0.084742,58992.0,58991.0,0.05049053]
[1723676706171,0.174742,58992.0,58991.0,0.05049053]
[1723676706364,0.084743,58991.0,58990.0,0.0002542]
[1723676706563,0.319486,58991.0,58990.0,0.0002542]
[1723676706770,0.87873928,58991.0,58990.0,0.0002542]
[1723676706971,1.104103,58991.0,58990.0,0.0002542]
[1723676707566,0.595543,58991.0,58990.0,0.0002542]
[1723676707970,1.104103,58991.0,58990.0,0.0002542]
[1723676708170,0.595543,58991.0,58990.0,0.0002542]
[1723676708469,1.104103,58991.0,58990.0,0.0012542]
[1723676708660,0.595543,58991.0,58990.0,0.0012542]
[1723676710169,0.234743,58991.0,58990.0,0.0012542]
[1723676710371,0.15,58991.0,58990.0,0.1712542]
[1723676710563,0.1477458,58991.0,58990.0,1.3696592]
[1723676710871,0.1477458,58991.0,58990.0,1.37936279]
[1723676711067,0.1477458,58991.0,58990.0,0.47080279]
[1723676711269,0.1477458,58991.0,58990.0,4.24080279]
[1723676711469,0.1477458,58991.0,58990.0,4.23980279]
[1723676711673,0.1477458,58991.0,58990.0,4.29221409]
[1723676712174,0.1477458,58991.0,58990.0,4.04070279]
[1723676712473,0.0523,59003.0,59000.0,0.084731]
[1723676712668,0.17025344,59001.0,59000.0,0.084731]
[1723676713677,0.17025344,59001.0,59000.0,0.085731]
[1723676714568,0.17025344,59001.0,59000.0,0.086731]
[1723676719874,0.17025344,59001.0,59000.0,0.171462]
[1723676720181,0.36328001,59015.0,59014.0,0.08471]
[1723676720376,0.16004,59015.0,59014.0,0.08471]
[1723676720585,0.084719,59009.0,59008.0,0.084719]
[1723676720771,0.244719,59009.0,59008.0,0.224719]
[1723676721576,0.16,59009.0,59008.0,0.224719]
[1723676721974,0.5208,59009.0,59008.0,0.225719]
[1723676722781,0.5208,59009.0,59008.0,0.086719]
[1723676723895,0.53087893,59009.0,59008.0,0.086719]
[1723676724078,0.17007893,59009.0,59008.0,0.086719]
[1723676724287,0.25479693,59009.0,59008.0,0.002]
[1723676724779,0.33951493,59009.0,59008.0,0.002]
[1723676727483,0.25479693,59009.0,59008.0,0.002]
[1723676727787,0.16,59009.0,59008.0,0.086719]
[1723676729277,0.244718,59009.0,59008.0,0.086719]
[1723676730179,0.244718,59009.0,59008.0,0.246719]
[1723676732181,0.244718,59009.0,59008.0,0.162]
[1723676732383,0.329436,59009.0,59008.0,0.002]
[1723676733891,0.50844,59008.0,58994.0,0.05037043]
[1723676734188,0.084743,58991.0,58990.0,0.05037043]
[1723676734374,0.084743,58991.0,58981.0,0.3608]
[1723676734375,0.084745,58990.0,58984.0,0.05037043]
[1723676734582,0.084756,58983.0,58982.0,0.084756]
[1723676734777,0.234756,58983.0,58982.0,0.084756]
[1723676735579,0.234756,58983.0,58982.0,0.093756]
[1723676736480,0.234756,58983.0,58982.0,0.103756]
[1723676738275,0.234756,58983.0,58982.0,0.019]
[1723676738595,0.595556,58983.0,58982.0,0.019]
[1723676738980,0.234756,58983.0,58982.0,0.019]
[1723676739989,0.0002542,58988.0,58987.0,0.084749]
[1723676740287,0.0002542,58988.0,58987.0,0.75745858]
[1723676740487,0.0002542,58988.0,58987.0,5.35132717]
[1723676740675,0.0002542,58988.0,58987.0,5.284149]
[1723676740876,0.0902542,58988.0,58987.0,4.95131876]
[1723676741076,0.1750022,58988.0,58987.0,0.3608]
[1723676741291,0.0902542,58988.0,58987.0,0.3608]
[1723676741590,0.0902542,58988.0,58987.0,0.445549]
[1723676741886,0.0902542,58988.0,58987.0,0.453549]
[1723676741887,0.0922542,58988.0,58987.0,0.453549]
[1723676743487,0.0922542,58988.0,58987.0,0.52071876]
[1723676743687,0.0922542,58988.0,58987.0,0.68071876]
[1723676745179,0.0922542,58988.0,58987.0,0.613549]
[1723676745382,0.0922542,58988.0,58987.0,0.68068702]
[1723676746195,0.0922542,58988.0,58987.0,0.698298]
[1723676751595,0.0922542,58988.0,58987.0,0.750898]
[1723676753391,0.0922542,58988.0,58987.0,0.698298]
[1723676753587,0.0922542,58988.0,58987.0,0.68075891]
[1723676753887,0.0922542,58988.0,58987.0,0.66396226]
[1723676754589,0.1770022,58988.0,58987.0,0.41922423]
[1723676754897,0.1770022,58988.0,58987.0,0.3688]
[1723676756397,0.6225502,58988.0,58987.0,0.008]
[1723676756588,1.1311502,58988.0,58987.0,0.008]
[1723676756789,1.1817502,58988.0,58987.0,0.008]
[1723676757190,1.5817502,58988.0,58981.0,0.41122423]
[1723676757485,0.084762,58978.0,58977.0,0.0002542]
[1723676757687,0.224762,58978.0,58977.0,0.0002542]
[1723676758897,0.224762,58978.0,58977.0,0.0850182]
[1723676759199,0.224762,58978.0,58977.0,0.0870182]
[1723676759896,0.224762,58978.0,58977.0,0.0850182]
[1723676761285,0.226762,58978.0,58977.0,0.0850182]
[1723676763402,0.226762,58978.0,58977.0,0.0002542]
[1723676766001,0.226762,58978.0,58977.0,0.0850182]
[1723676766588,0.142,58978.0,58977.0,0.4458182]
[1723676766790,0.142,58978.0,58977.0,0.65624243]
[1723676766994,0.142,58978.0,58977.0,0.0850182]
[1723676767591,0.142,58978.0,58977.0,0.2350182]
[1723676767791,0.142,58978.0,58977.0,0.5958182]
[1723676767987,0.141,58978.0,58977.0,0.6058182]
[1723676768600,0.14,58978.0,58977.0,0.5998182]
[1723676768797,0.14,58978.0,58977.0,0.6048182]
[1723676769396,0.14,58978.0,58977.0,0.5958182]
[1723676769590,0.141,58978.0,58977.0,0.6058182]
[1723676770997,0.14,58978.0,58977.0,0.5998182]
[1723676771200,0.142,58978.0,58977.0,0.6138182]
[1723676771509,0.142,58978.0,58977.0,0.68102811]
[1723676771899,0.141,58978.0,58977.0,0.6058182]
[1723676772409,0.142,58978.0,58977.0,0.6088182]
[1723676772598,0.142,58978.0,58977.0,0.6128182]
[1723676774111,0.141,58978.0,58977.0,0.6098182]
[1723676774296,0.14,58978.0,58977.0,0.6058182]
[1723676774500,0.141,58978.0,58977.0,0.6058182]
[1723676774695,0.142,58978.0,58977.0,0.6098182]
[1723676775206,0.141,58978.0,58977.0,0.6088182]
[1723676775401,0.141,58978.0,58977.0,0.67602811]
[1723676775600,0.141,58978.0,58977.0,0.6088182]
[1723676776203,0.141,58978.0,58977.0,0.67602811]
[1723676776417,0.141,58978.0,58977.0,0.6088182]
[1723676776805,0.141,58978.0,58977.0,0.4588182]
[1723676776806,0.225762,58978.0,58977.0,0.4588182]
[1723676777001,0.225762,58978.0,58977.0,0.0132542]
[1723676777002,0.310524,58978.0,58977.0,0.0132542]
[1723676777202,0.78410215,58978.0,58977.0,0.0042542]
[1723676777411,0.225762,58978.0,58977.0,0.0102542]
[1723676778012,0.2346283,58978.0,58977.0,0.0042542]
[1723676778202,0.2346283,58978.0,58977.0,0.0092542]
[1723676778508,0.2366283,58978.0,58977.0,0.0052542]
[1723676778902,0.2366283,58978.0,58977.0,0.0002542]
[1723676781806,0.2366283,58978.0,58977.0,0.05077185]
[1723676782003,0.2366283,58978.0,58977.0,0.0002542]
[1723676782202,0.2366283,58978.0,58977.0,0.0850182]
[1723676782203,0.142,58978.0,58977.0,0.0850182]
[1723676782411,0.142,58978.0,58977.0,0.29222811]
[1723676782804,0.142,58978.0,58977.0,0.2250182]
[1723676783510,0.142,58978.0,58977.0,0.2300182]
[1723676783900,0.14,58978.0,58977.0,0.2300182]
[1723676784108,0.14,58978.0,58977.0,0.2330182]
[1723676784414,0.14,58978.0,58977.0,0.31731321]
[1723676785113,0.14,58978.0,58977.0,0.36850272]
[1723676785514,0.14,58978.0,58977.0,0.37860423]
[1723676786009,0.14,58978.0,58977.0,0.37560423]
[1723676786213,0.14,58978.0,58977.0,4.06430922]
[1723676786814,0.14,58978.0,58977.0,4.14873943]
[1723676787117,0.14,58978.0,58977.0,4.06430922]
[1723676787415,0.14,58978.0,58977.0,4.01311971]
[1723676790315,0.14,58978.0,58977.0,4.0030182]
[1723676793126,0.14,58978.0,58977.0,4.08745745]
[1723676794123,0.14,58978.0,58977.0,4.44825745]
[1723676795125,0.14,58978.0,58977.0,4.08745745]
[1723676795319,0.14,58978.0,58977.0,4.44825745]
[1723676795715,0.14,58978.0,58977.0,4.08745745]
[1723676795921,0.14,58978.0,58977.0,4.44825745]
[1723676797725,0.14,58978.0,58977.0,4.41510003]
[1723676799426,0.14,58978.0,58977.0,4.67878613]
[1723676800824,0.02,58984.0,58977.0,5.84108724]
[1723676801029,0.00265421,58988.0,58983.0,0.445555]
[1723676801235,0.05066015,58995.0,58994.0,0.169478]
[1723676801524,0.05066015,59005.0,58994.0,1.01892122]
[1723676801738,0.17,59005.0,59004.0,0.084725]
[1723676802431,0.084726,59004.0,59002.0,0.05054142]
[1723676802617,0.244726,59004.0,59002.0,0.13526842]
[1723676803125,0.244726,59004.0,59002.0,0.084727]
[1723676803332,0.16,59004.0,59003.0,0.084726]
[1723676803823,0.174,59004.0,59003.0,0.084726]
[1723676804032,0.174,59004.0,59003.0,0.13526742]
[1723676804224,0.174,59004.0,59003.0,0.084726]
[1723676804617,0.183,59004.0,59003.0,0.085726]
[1723676805426,0.169,59004.0,59003.0,0.085726]
[1723676805626,0.178,59004.0,59003.0,0.086726]
[1723676807027,0.16904,59004.0,59003.0,0.086726]
[1723676810626,0.50848,59003.0,58988.0,0.05037357]
[1723676810821,0.084751,58986.0,58982.0,0.05037357]
[1723676811028,0.084751,58986.0,58976.0,0.41117357]
[1723676811029,0.0531,58985.0,58976.0,0.41117357]
[1723676811229,0.0531,58985.0,58976.0,0.3608]
[1723676811230,0.084764,58977.0,58976.0,0.3608]
[1723676811432,0.244764,58977.0,58976.0,0.3608]
[1723676812937,0.244764,58977.0,58976.0,0.3708]
[1723676813532,0.245764,58977.0,58976.0,0.3818]
[1723676813833,0.245764,58977.0,58976.0,0.3718]
[1723676814137,0.245764,58977.0,58976.0,0.3758]
[1723676814726,0.244764,58977.0,58976.0,0.3648]
[1723676814939,0.244764,58977.0,58976.0,0.009]
[1723676821139,0.329528,58977.0,58976.0,0.009]
[1723676823641,0.244764,58977.0,58976.0,0.009]
[1723676825446,0.244764,58977.0,58976.0,0.093765]
[1723676827437,0.16,58977.0,58976.0,0.243765]
[1723676828743,0.16,58977.0,58976.0,0.25373787]
[1723676832637,0.16,58977.0,58976.0,4.02373787]
[1723676832835,0.16,58977.0,58976.0,0.159]
[1723676832836,0.24476,58977.0,58976.0,0.159]
[1723676835340,0.24476,58977.0,58976.0,0.243761]
[1723676836245,0.24476,58977.0,58976.0,0.159]
[1723676836461,0.32952,58977.0,58976.0,0.009]
[1723676836948,0.41428,58977.0,58976.0,0.009]
[1723676837156,0.084767,58972.0,58971.0,0.0002542]
[1723676837352,0.08478,58963.0,58962.0,0.23728]
[1723676837651,0.084781,58962.0,58961.0,0.084782]
[1723676837847,0.244781,58962.0,58961.0,0.084782]
[1723676839248,0.244781,58962.0,58961.0,0.13515557]
[1723676839651,0.245781,58962.0,58961.0,0.13515557]
[1723676840155,0.246781,58962.0,58961.0,0.097782]
[1723676841445,0.246781,58962.0,58961.0,0.013]
[1723676841751,0.084788,58957.0,58955.0,0.067438]
[1723676841956,0.9462495,58957.0,58953.0,0.05060568]
[1723676842155,1.45504693,58957.0,58951.0,0.05060568]
[1723676842850,1.405316,58957.0,58956.0,0.0132542]
[1723676843154,1.406316,58957.0,58956.0,0.0132542]
[1723676843557,1.406316,58957.0,58956.0,0.45592914]
[1723676843558,0.161,58957.0,58956.0,0.45592914]
[1723676843852,0.162,58957.0,58956.0,0.61792914]
[1723676844049,0.162,58957.0,58956.0,0.25712914]
[1723676844242,0.246788,58957.0,58956.0,0.17234014]
[1723676844449,0.246788,58957.0,58956.0,0.02234014]
[1723676845058,0.246788,58957.0,58956.0,0.07284933]
[1723676846156,0.246788,58957.0,58956.0,0.02234014]
[1723676847248,0.246788,58957.0,58956.0,0.16234014]
[1723676848359,0.162,58957.0,58956.0,0.24712814]
[1723676849553,0.04352991,58957.0,58956.0,1.89144414]
[1723676849754,0.0002542,58967.0,58966.0,0.084773]
[1723676849957,0.0002542,58967.0,58966.0,0.605573]
[1723676850548,0.0002542,58967.0,58966.0,0.75761579]
[1723676850748,0.0002542,58967.0,58966.0,5.729907]
[1723676850954,0.0012542,58967.0,58966.0,5.729907]
[1723676851145,0.0012542,58967.0,58966.0,5.329907]
[1723676852044,0.0012542,58967.0,58966.0,5.729907]
[1723676852751,0.0012542,58967.0,58966.0,1.959907]
[1723676852953,0.0002542,58967.0,58966.0,1.959907]
[1723676853258,0.0012542,58967.0,58966.0,1.960907]
[1723676853657,0.0022542,58967.0,58966.0,1.960907]
[1723676853856,0.0022542,58967.0,58966.0,2.02086835]
[1723676854255,0.0022542,58967.0,58966.0,5.79086835]
[1723676855762,0.084753,58981.0,58980.0,0.084753]
[1723676855965,0.244753,58981.0,58980.0,0.084753]
[1723676857055,0.161,58981.0,58980.0,0.084753]
[1723676857363,0.161,58981.0,58980.0,0.23473547]
[1723676858060,0.001,58981.0,58980.0,0.36989411]
[1723676858259,0.001,58981.0,58980.0,0.42188323]
[1723676858464,0.001,58981.0,58980.0,1.28012847]
[1723676859168,0.001,58981.0,58980.0,1.24575805]
[1723676860755,0.001,58981.0,58980.0,0.28511805]
[1723676861268,0.081,58981.0,58980.0,0.09473547]
[1723676863668,0.001,58981.0,58980.0,0.09473547]
[1723676863870,0.161,58981.0,58980.0,0.09473547]
[1723676864570,0.001,58981.0,58980.0,0.09473547]
[1723676864967,0.001,58981.0,58980.0,0.25473547]
[1723676868973,0.101,58981.0,58980.0,0.25473547]
[1723676870972,0.001,58981.0,58980.0,0.30511805]
[1723676871565,0.001,58981.0,58980.0,0.25473547]
[1723676872670,0.001,58981.0,58980.0,0.32197921]
[1723676872975,0.001,58981.0,58980.0,0.40673321]
[1723676873271,0.001,58981.0,58980.0,0.33948947]
[1723676876162,0.001,58981.0,58980.0,1.33288347]
[1723676876368,0.00025441,58986.0,58985.0,0.084746]
[1723676876676,0.00025441,58986.0,58985.0,0.605546]
[1723676877373,0.08025441,58986.0,58985.0,0.605546]
[1723676877777,0.08625441,58986.0,58985.0,0.605546]
[1723676878779,0.17099941,58986.0,58985.0,0.16]
[1723676879076,0.17099941,58986.0,58983.0,0.05048297]
[1723676879279,0.084748,58984.0,58982.0,0.06730557]
[1723676879571,0.224748,58984.0,58981.0,0.084752]
[1723676879775,0.141,58983.0,58981.0,0.234752]
[1723676880079,0.311,58983.0,58981.0,0.234752]
[1723676880276,0.311,58983.0,58982.0,0.084751]
[1723676880469,0.311,58983.0,58982.0,0.234751]
[1723676881575,0.17,58983.0,58982.0,0.4526444]
[1723676881775,0.17,58983.0,58982.0,0.87727151]
[1723676881970,0.002,58984.0,58983.0,0.169498]
[1723676882182,0.002,58984.0,58983.0,0.42398637]
[1723676882479,0.00025441,58986.0,58985.0,0.084746]
[1723676882686,0.00025441,58986.0,58985.0,0.73577543]
[1723676883376,0.00025441,58986.0,58985.0,0.82053432]
[1723676883581,0.00025441,58986.0,58985.0,0.7846158]
[1723676883778,0.00025441,58986.0,58985.0,0.73579203]
[1723676883985,0.00025441,58986.0,58985.0,0.63467551]
[1723676884177,0.00025441,58986.0,58985.0,0.63438975]
[1723676884375,0.00025441,58986.0,58985.0,0.73550627]
[1723676884772,0.08025441,58986.0,58985.0,0.73550627]
[1723676884973,0.08025441,58986.0,58985.0,0.49438975]
[1723676885280,0.08625441,58986.0,58985.0,0.5298489]
[1723676885684,0.08625441,58986.0,58985.0,0.57931811]
[1723676885685,0.09225441,58986.0,58985.0,0.57931811]
[1723676885983,0.09225441,58986.0,58985.0,0.65501521]
[1723676886682,0.09225441,58986.0,58985.0,0.75613173]
[1723676886882,0.01225441,58986.0,58985.0,0.65501521]
[1723676888586,0.18225441,58986.0,58985.0,0.65501521]
[1723676893385,0.18225441,58986.0,58985.0,0.75578625]
[1723676895186,0.18225441,58986.0,58985.0,0.73941673]
[1723676895383,0.18225441,58986.0,58985.0,1.17445621]
[1723676895579,0.18225441,58986.0,58985.0,1.06850733]
[1723676896081,0.18225441,58986.0,58985.0,1.17445385]
[1723676896387,0.18225441,58986.0,58985.0,1.32208576]
[1723676898085,0.18225441,58986.0,58985.0,1.32154791]
[1723676898288,0.18225441,58986.0,58985.0,5.09154791]
[1723676898592,0.18225441,58986.0,58985.0,4.98560139]
[1723676899092,0.18225441,58986.0,58985.0,4.98560148]
[1723676899684,0.18225441,58986.0,58985.0,5.09155012]
[1723676899879,0.18225441,58986.0,58985.0,4.98560148]
[1723676900079,0.18225441,58986.0,58985.0,4.90085448]
[1723676900484,0.18225441,58986.0,58985.0,4.83544004]
[1723676901593,0.18225441,58986.0,58985.0,4.90118544]
[1723676901996,0.18225441,58986.0,58985.0,4.83544004]
[1723676902697,0.18225441,58986.0,58985.0,4.8358772]
[1723676903497,0.18225441,58986.0,58985.0,4.8358919]
[1723676904788,0.18225441,58986.0,58985.0,1.0658919]
[1723676905194,0.26699941,58986.0,58985.0,1.16712399]
[1723676905389,0.26699941,58986.0,58985.0,1.08237799]
[1723676905589,0.26699941,58986.0,58985.0,0.83350562]
[1723676906696,0.26699941,58986.0,58985.0,0.91825262]
[1723676907292,0.18225441,58986.0,58985.0,0.91844889]
[1723676907485,0.18225441,58986.0,58985.0,1.06609295]
[1723676908195,0.18225441,58986.0,58985.0,4.83609295]
[1723676908596,0.18225441,58986.0,58985.0,4.96263931]
[1723676909091,0.18225441,58986.0,58985.0,5.02834299]
[1723676909398,0.18225441,58986.0,58985.0,1.19263931]
[1723676909705,0.18225441,58986.0,58985.0,1.25842274]
[1723676911512,0.18225441,58986.0,58985.0,1.1926268]
[1723676912105,0.18225441,58986.0,58985.0,1.19249476]
[1723676914004,0.18225441,58986.0,58985.0,1.25835822]
[1723676914800,0.08475,58983.0,58982.0,0.08450634]
[1723676915000,0.25475,58983.0,58982.0,0.16]
[1723676916403,0.25975,58983.0,58982.0,0.24450634]
[1723676916600,0.25975,58983.0,58982.0,0.16]
[1723676916800,0.25975,58983.0,58982.0,0.24450634]
[1723676916996,0.25975,58983.0,58982.0,0.16]
[1723676918103,0.25975,58983.0,58982.0,0.91961024]
[1723676918302,0.175,58983.0,58982.0,1.01686926]
[1723676918512,0.175,58983.0,58982.0,1.06679292]
[1723676919108,0.175,58983.0,58982.0,0.80312737]
[1723676919302,0.175,58983.0,58982.0,1.19333063]
[1723676919500,0.175,58983.0,58982.0,0.65547466]
[1723676919699,0.175,58983.0,58982.0,1.29468385]
[1723676920805,0.175,58983.0,58982.0,1.1933184]
[1723676921201,0.175,58983.0,58982.0,1.06639461]
[1723676922413,0.175,58983.0,58982.0,0.70559461]
[1723676922716,0.175,58983.0,58982.0,1.06639461]
[1723676923107,0.175,58983.0,58982.0,4.83639461]
[1723676923307,0.175,58983.0,58982.0,4.42510234]
[1723676923513,0.175,58983.0,58982.0,4.83641103]
[1723676924316,0.175,58983.0,58982.0,4.96296492]
[1723676924511,0.175,58983.0,58982.0,4.83641103]
[1723676924809,0.175,58983.0,58982.0,1.06641103]
[1723676925209,0.175,58983.0,58982.0,1.19296503]
[1723676925910,0.25975,58983.0,58982.0,0.67401076]
[1723676926109,0.25975,58983.0,58982.0,0.3608]
[1723676927613,0.40175,58983.0,58982.0,0.3608]
[1723676928618,0.40986109,58983.0,58982.0,0.3608]
[1723676930914,1.31850109,58983.0,58982.0,0.42838055]
[1723676931118,1.31850109,58983.0,58982.0,0.3608]
[1723676931418,1.3693074,58983.0,58982.0,0.41149164]
[1723676932513,1.31850109,58983.0,58982.0,0.3608]
[1723676933016,0.91850109,58983.0,58982.0,0.3608]
[1723676933217,0.26786109,58983.0,58982.0,0.3608]
[1723676933412,0.26786109,58983.0,58982.0,0.42838055]
[1723676933613,0.26786109,58983.0,58982.0,0.3608]
[1723676933813,0.26786109,58983.0,58982.0,0.42838055]
[1723676935317,0.26786109,58983.0,58982.0,0.3608]
[1723676935514,0.26786109,58983.0,58982.0,0.42838583]
[1723676938811,0.25975,58983.0,58982.0,0.42838583]
[1723676940010,0.25975,58983.0,58982.0,0.3608]
[1723676941225,0.25975,58983.0,58982.0,0.5208]
[1723676941531,0.63435,58983.0,58982.0,0.5208]
[1723676941725,0.50864,58982.0,58976.0,0.05070008]
[1723676941916,0.084764,58973.0,58972.0,0.05070454]
[1723676942116,0.084765,58972.0,58970.0,0.05070454]
[1723676942432,0.084768,58970.0,58969.0,0.05070454]
[1723676942625,0.084768,58970.0,58967.0,0.05070454]
[1723676942626,0.084771,58968.0,58967.0,0.05070454]
[1723676942824,0.084773,58967.0,58966.0,0.05070454]
[1723676943020,0.084775,58966.0,58964.0,0.084777]
[1723676943219,0.084777,58964.0,58963.0,0.06760288]
[1723676943424,0.084778,58963.0,58962.0,0.36105441]
[1723676943621,0.234778,58963.0,58962.0,0.36105441]
[1723676943823,0.234778,58963.0,58962.0,0.44583441]
[1723676945229,0.235778,58963.0,58962.0,0.44583441]
[1723676947327,0.236778,58963.0,58962.0,0.44583441]
[1723676947833,0.236778,58963.0,58962.0,0.49644438]
[1723676948931,0.236778,58963.0,58962.0,0.4964247]
[1723676949136,0.236778,58963.0,58962.0,0.44583441]
[1723676949331,0.236778,58963.0,58962.0,0.41164439]
[1723676949534,0.236778,58963.0,58962.0,0.36105441]
[1723676950832,0.236778,58963.0,58962.0,0.00025441]
[1723676951327,0.236778,58963.0,58962.0,0.08503441]
[1723676951525,0.236778,58963.0,58962.0,0.24503441]
[1723676955039,0.236778,58963.0,58962.0,0.60583441]
[1723676958347,0.236778,58963.0,58962.0,0.65643588]
[1723676958541,0.236778,58963.0,58962.0,0.65643746]
[1723676959143,0.236778,58963.0,58962.0,0.60583441]
[1723676966260,0.236778,58963.0,58962.0,0.67343729]
[1723676967462,0.236778,58963.0,58962.0,0.60583441]
[1723676969060,0.236778,58963.0,58962.0,0.24503441]
[1723676969261,0.236778,58963.0,58962.0,0.65225956]
[1723676970462,0.236778,58963.0,58962.0,0.6520951]
[1723676971850,0.152,58963.0,58962.0,0.6520951]
[1723676973060,0.152,58963.0,58962.0,0.75339495]
[1723676973268,0.151,58963.0,58962.0,0.75339495]
[1723676973467,0.152,58963.0,58962.0,0.75339495]
[1723676974966,0.152,58963.0,58962.0,0.39259495]
[1723676975159,0.152,58963.0,58962.0,0.75349652]
[1723676975356,0.152,58963.0,58962.0,0.65219667]
[1723676975959,0.20273612,58963.0,58962.0,0.65219667]
[1723676979963,0.152,58963.0,58962.0,0.65219667]
[1723676982667,0.152,58963.0,58962.0,0.91595858]
[1723676983167,0.152,58963.0,58962.0,1.01757668]
[1723676983356,0.152,58963.0,58962.0,1.06365749]
[1723676983761,0.152,58963.0,58962.0,0.91595858]
[1723676984166,0.152,58963.0,58962.0,1.01756877]
[1723676984366,0.152,58963.0,58962.0,1.01738658]
[1723676984664,0.152,58963.0,58962.0,1.06347497]
[1723676984868,0.152,58963.0,58962.0,0.91577639]
[1723676985070,0.152,58963.0,58962.0,1.01738174]
[1723676985460,0.152,58963.0,58962.0,1.16496208]
[1723676985660,0.152,58963.0,58962.0,1.01726327]
[1723676985860,0.152,58963.0,58962.0,1.16496382]
[1723676986660,0.152,58963.0,58962.0,1.06336346]
[1723676987365,0.152,58963.0,58962.0,0.83088291]
[1723676987366,0.318878,58963.0,58962.0,0.83088291]
[1723676987565,0.36961412,58963.0,58962.0,0.97858889]
[1723676987957,0.318878,58963.0,58962.0,0.97858889]
[1723676989165,0.318878,58963.0,58962.0,0.97859214]
[1723676989563,0.318878,58963.0,58962.0,0.97860723]
[1723676989965,0.318878,58963.0,58962.0,1.06338723]
[1723676990671,0.236778,58963.0,58962.0,1.06338723]
[1723676990872,0.318878,58963.0,58962.0,1.06338723]
[1723676991076,0.36972741,58963.0,58962.0,1.06338723]
[1723676992772,0.318878,58963.0,58962.0,1.06338723]
[1723676992980,0.318878,58963.0,58962.0,0.97860736]
[1723676994577,0.318878,58963.0,58962.0,0.81860736]
[1723676996674,0.3697283,58963.0,58962.0,0.81860736]
[1723676998568,0.318878,58963.0,58962.0,0.81860736]
[1723676999375,0.4545063,58963.0,58962.0,0.81860736]
[1723676999667,1.673256,58963.0,58962.0,0.26402121]
[1723676999874,1.7034629,58963.0,58962.0,0.05108121]
[1723677000073,1.7034629,58963.0,58962.0,0.00025441]
[1723677000575,0.169562,58961.0,58960.0,0.05083084]
[1723677000881,0.169566,58960.0,58959.0,0.05083084]
[1723677001080,0.169568,58959.0,58958.0,0.05083084]
[1723677001283,0.169574,58957.0,58956.0,0.05083084]
[1723677001472,0.169574,58957.0,58954.0,0.00012352]
[1723677001473,0.08479,58955.0,58954.0,0.00012352]
[1723677001782,0.40733991,58955.0,58954.0,0.00012352]
[1723677002079,0.91621991,58955.0,58954.0,0.00012352]
[1723677002280,0.84846,58955.0,58954.0,0.0508979]
[1723677003378,0.84846,58955.0,58954.0,0.00012352]
[1723677003770,0.84946,58955.0,58954.0,0.00012352]
[1723677004273,0.25579,58955.0,58954.0,0.00012352]
[1723677004778,0.25679,58955.0,58954.0,0.00012352]
[1723677005176,0.172,58955.0,58954.0,0.175482]
[1723677005491,0.172,58955.0,58954.0,0.67781452]
[1723677005780,0.172,58955.0,58954.0,0.86157268]
[1723677006170,0.172,58955.0,58954.0,0.69479318]
[1723677006373,0.172,58955.0,58954.0,0.64781452]
[1723677006782,0.171,58955.0,58954.0,0.64781452]
[1723677007878,0.17,58955.0,58954.0,0.64781452]
[1723677008582,0.171,58955.0,58954.0,0.64781452]
[1723677009282,0.171,58955.0,58954.0,0.73233743]
[1723677009681,0.171,58955.0,58954.0,0.77932544]